bitfinex/quotes_SOLUSD_20250406
["timestamp","ask_amount","ask_price","bid_price","bid_amount"]
[1743981413217,12.6959,105.2,105.18,46.90214734]
[1743981413417,18.79181043,105.2,105.18,46.90214734]
[1743981413610,0.14216157,105.19,105.18,46.90214734]
[1743981413809,18.933972,105.22,105.17,0.063]
[1743981414018,65.69395777,105.22,105.17,46.96514734]
[1743981414223,0.28432314,105.19,105.17,0.063]
[1743981414626,0.14216157,105.18,105.17,0.063]
[1743981415261,91.20858091,105.18,105.17,0.063]
[1743981415833,181.91608091,105.18,105.17,0.063]
[1743981416715,100.27613357,105.17,105.16,0.063]
[1743981416916,147.17828091,105.17,105.16,0.063]
[1743981417544,147.67828091,105.17,105.16,0.063]
[1743981417723,156.68668091,105.17,105.16,0.063]
[1743981419022,0.14216157,105.11,105.08,0.063]
[1743981419223,19.07613357,105.11,105.08,0.063]
[1743981420360,28.59013357,105.11,105.08,0.063]
[1743981420678,0.14216157,105.11,105.08,0.063]
[1743981420828,0.28432314,105.11,105.1,46.90214734]
[1743981421028,18.933972,105.11,105.09,46.90214734]
[1743981421233,0.14216157,105.1,105.08,46.96514734]
[1743981421451,0.14216157,105.1,105.08,0.063]
[1743981421977,65.97828091,105.09,105.08,0.063]
[1743981422278,75.49388091,105.09,105.08,0.063]
[1743981422948,19.07613357,105.09,105.08,0.063]
[1743981423350,28.59173357,105.09,105.08,0.063]
[1743981423549,18.933972,105.09,105.08,0.063]
[1743981423748,75.49388091,105.09,105.08,0.063]
[1743981424049,28.59353357,105.07,105.06,0.063]
[1743981424264,168.89568091,105.07,105.06,0.063]
[1743981425049,100.27613357,105.07,105.06,0.063]
[1743981425363,75.21135777,105.07,105.06,0.063]
[1743981425559,75.49568091,105.07,105.06,0.063]
[1743981426147,112.29353357,105.06,105.05,0.063]
[1743981426461,159.19568091,105.06,105.05,0.063]
[1743981427173,168.71398091,105.06,105.05,0.063]
[1743981428041,197.46838091,105.06,105.03,0.063]
[1743981428271,65.97828091,105.04,105.03,0.0001]
[1743981428466,65.97828091,105.04,105.01,0.063]
[1743981428467,31.72223357,105.02,105.01,0.0001]
[1743981428680,78.62438091,105.02,105.01,0.0001]
[1743981428982,78.62438091,105.02,104.97,0.063]
[1743981429156,75.50208091,105.0,104.97,0.063]
[1743981429357,127.23342825,105.0,104.97,0.063]
[1743981429564,0.14216157,104.96,104.86,4.71620567]
[1743981429887,19.07613357,104.92,104.88,46.90214734]
[1743981430053,31.27613357,104.92,104.89,46.90214734]
[1743981430244,0.28432314,104.92,104.82,64.91154734]
[1743981430448,19.07613357,104.92,104.82,64.91154734]
[1743981430641,65.97828091,104.92,104.86,46.90214734]
[1743981430870,31.79773357,104.92,104.86,46.90214734]
[1743981431071,31.79773357,104.92,104.87,46.90214734]
[1743981431280,31.79773357,104.92,104.88,46.90214734]
[1743981431540,21.7296,104.94,104.91,46.96514734]
[1743981431541,12.2,104.94,104.91,46.96514734]
[1743981431764,18.79181043,104.95,104.91,26.063]
[1743981431972,12.2,104.98,104.94,46.90214734]
[1743981432157,12.2,104.98,104.91,39.1012]
[1743981432459,18.933972,104.97,104.94,46.90214734]
[1743981432649,12.2,104.98,104.91,0.063]
[1743981432864,0.28432314,104.97,104.96,46.90214734]
[1743981433268,12.2,104.98,104.96,46.90214734]
[1743981433664,12.2,104.98,104.97,46.90214734]
[1743981433864,12.2,104.98,104.92,26.0]
[1743981434052,19.07613357,104.97,104.91,26.063]
[1743981434245,19.07613357,104.97,104.94,46.90214734]
[1743981434854,19.07613357,104.97,104.95,46.90214734]
[1743981435244,18.933972,104.97,104.95,46.90214734]
[1743981435470,0.14216157,104.97,104.91,26.063]
[1743981435717,18.79181043,104.97,104.94,46.90214734]
[1743981435970,0.14216157,104.94,104.91,46.96514734]
[1743981436174,0.28432314,104.94,104.91,0.063]
[1743981436349,0.28432314,104.94,104.91,46.96514734]
[1743981436547,18.79181043,104.95,104.92,46.90214734]
[1743981436757,0.14216157,104.94,104.91,0.063]
[1743981437074,0.14216157,104.92,104.91,0.063]
[1743981437378,65.97828091,104.92,104.91,0.063]
[1743981437591,88.21918091,104.92,104.91,0.063]
[1743981437795,88.71918091,104.92,104.91,0.0001]
[1743981437962,0.14216157,104.9,104.8,0.03]
[1743981438279,19.07613357,104.88,104.8,0.03]
[1743981438449,19.07613357,104.86,104.83,46.90214734]
[1743981438645,19.07613357,104.86,104.8,0.03]
[1743981438850,0.28432314,104.86,104.8,0.03]
[1743981439081,81.2,104.89,104.85,46.90214734]
[1743981439082,18.64964886,104.87,104.85,46.90214734]
[1743981439283,0.28432314,104.88,104.86,70.98491522]
[1743981439586,18.64964886,104.89,104.87,70.98491522]
[1743981439789,0.14216157,104.89,104.88,70.98491522]
[1743981439957,0.28432314,104.9,104.88,70.98491522]
[1743981440157,0.14216157,104.9,104.82,70.98491522]
[1743981440359,0.14216157,104.9,104.87,70.98491522]
[1743981440556,0.14216157,104.9,104.88,70.98491522]
[1743981440765,0.28432314,104.9,104.82,70.98491522]
[1743981441065,0.28432314,104.9,104.85,26.0]
[1743981441261,18.64964886,104.91,104.89,70.98491522]
[1743981441471,18.64964886,104.92,104.9,70.98491522]
[1743981441872,18.64964886,104.92,104.89,70.98491522]
[1743981442059,18.64964886,104.92,104.86,0.03]
[1743981442392,18.64964886,104.92,104.9,70.98491522]
[1743981443283,0.42648471,104.91,104.87,70.98491522]
[1743981443481,0.42648471,104.91,104.86,0.03]
[1743981443680,0.42648471,104.89,104.86,0.03]
[1743981443879,0.42648471,104.89,104.86,71.01491522]
[1743981444179,0.42648471,104.89,104.86,0.03]
[1743981444358,0.42648471,104.89,104.87,70.98491522]
[1743981444771,0.42648471,104.89,104.86,0.03]
[1743981444973,0.42648471,104.89,104.87,70.98491522]
[1743981445166,0.42648471,104.89,104.86,0.03]
[1743981445167,0.14216157,104.9,104.88,70.98491522]
[1743981445382,18.64964886,104.91,104.88,70.98491522]
[1743981445590,0.14216157,104.91,104.87,70.98491522]
[1743981445773,0.14216157,104.91,104.86,0.03]
[1743981445774,0.42648471,104.91,104.86,0.03]
[1743981445972,0.42648471,104.91,104.86,71.01491522]
[1743981446191,0.14216157,104.91,104.86,0.03]
[1743981446397,0.28432314,104.91,104.88,70.98491522]
[1743981446997,0.28432314,104.91,104.89,70.98491522]
[1743981447290,12.22,104.94,104.9,70.98491522]
[1743981447492,12.22,104.94,104.92,70.98491522]
[1743981447697,18.79181043,104.95,104.92,70.98491522]
[1743981447875,89.77672565,104.95,104.9,70.98491522]
[1743981448213,0.14216157,104.94,104.86,0.03]
[1743981448385,0.28432314,104.92,104.91,70.98491522]
[1743981448590,0.14216157,104.92,104.86,0.03]
[1743981448891,0.28432314,104.9,104.86,0.03]
[1743981449087,0.28432314,104.9,104.86,71.01491522]
[1743981449487,0.28432314,104.9,104.86,0.03]
[1743981449701,0.28432314,104.88,104.86,0.03]
[1743981449885,0.28432314,104.88,104.86,71.01491522]
[1743981450078,0.42648471,104.9,104.86,0.03]
[1743981450292,0.42648471,104.9,104.87,70.98491522]
[1743981450598,0.42648471,104.9,104.86,0.03]
[1743981450778,0.42648471,104.9,104.88,70.98491522]
[1743981451177,0.42648471,104.9,104.87,70.98491522]
[1743981451698,28.60903357,104.9,104.86,71.01491522]
[1743981451886,19.07613357,104.9,104.86,0.03]
[1743981452090,19.07613357,104.9,104.86,71.01491522]
[1743981452597,19.07613357,104.9,104.87,70.98491522]
[1743981452806,99.59404879,104.9,104.86,0.03]
[1743981453100,28.60913357,104.9,104.86,71.01491522]
[1743981453501,99.59404879,104.9,104.86,0.03]
[1743981453705,19.07613357,104.9,104.86,71.01491522]
[1743981453887,90.06104879,104.9,104.86,0.03]
[1743981454087,19.07613357,104.9,104.86,0.03]
[1743981454284,19.07613357,104.9,104.86,71.01491522]
[1743981454692,28.60923357,104.9,104.86,71.01491522]
[1743981454892,99.59414879,104.9,104.86,0.03]
[1743981455484,19.07613357,104.88,104.86,0.03]
[1743981456378,28.61083357,104.88,104.86,0.03]
[1743981456680,90.06104879,104.87,104.86,0.03]
[1743981457190,19.07613357,104.87,104.86,0.03]
[1743981457515,19.07613357,104.86,104.81,0.03]
[1743981457679,19.07613357,104.84,104.81,0.03]
[1743981457881,99.60014879,104.84,104.81,0.03]
[1743981458509,90.06104879,104.82,104.81,0.03]
[1743981458715,102.66404879,104.82,104.81,0.03]
[1743981459092,31.67913357,104.82,104.81,0.03]
[1743981459399,18.933972,104.83,104.81,0.03]
[1743981459602,0.14216157,104.82,104.81,0.03]
[1743981459984,18.79181043,104.84,104.81,71.01491522]
[1743981460178,0.28432314,104.83,104.81,71.01491522]
[1743981460679,297.7,104.86,104.82,141.96983044]
[1743981460881,18.79181043,104.88,104.85,70.98491522]
[1743981461086,12.4188,104.89,104.82,70.98491522]
[1743981461283,12.4188,104.89,104.82,47.32610385]
[1743981461592,12.42216157,104.9,104.87,47.32610385]
[1743981461791,12.28,104.9,104.88,47.32610385]
[1743981462602,18.79181043,104.89,104.86,47.32610385]
[1743981462908,0.28432314,104.88,104.86,47.32610385]
[1743981463113,0.28432314,104.88,104.81,0.03]
[1743981463311,0.28432314,104.86,104.83,71.03087174]
[1743981463503,19.07613357,104.89,104.85,71.03087174]
[1743981463684,19.07613357,104.89,104.81,0.03]
[1743981463888,19.07613357,104.89,104.86,71.03087174]
[1743981464086,99.64090531,104.89,104.81,0.03]
[1743981464409,19.07613357,104.87,104.83,71.03087174]
[1743981464789,0.28432314,104.88,104.86,71.03087174]
[1743981464992,0.14216157,104.88,104.86,71.03087174]
[1743981466214,12.28,104.9,104.87,71.03087174]
[1743981466698,19.07613357,104.89,104.86,71.03087174]
[1743981466902,19.07613357,104.89,104.85,71.03087174]
[1743981467408,19.07613357,104.89,104.81,0.03]
[1743981467409,18.79181043,104.84,104.81,0.03]
[1743981467617,0.28432314,104.83,104.81,0.03]
[1743981467797,0.42648471,104.82,104.81,0.03]
[1743981467993,90.10700531,104.82,104.81,0.03]
[1743981468403,99.64710531,104.82,104.81,0.03]
[1743981469386,19.07613357,104.81,104.8,0.03]
[1743981469589,90.10700531,104.81,104.75,0.03]
[1743981469785,19.07613357,104.76,104.75,0.03]
[1743981470212,90.10700531,104.76,104.75,0.03]
[1743981470396,99.65260531,104.76,104.75,0.03]
[1743981470603,19.07613357,104.72,104.71,0.03]
[1743981470794,102.36700531,104.72,104.71,0.03]
[1743981470998,183.56700531,104.72,104.6,14.78412517]
[1743981471199,19.07613357,104.69,104.6,14.78412517]
[1743981471405,89.96484374,104.69,104.6,14.78412517]
[1743981471605,71.31519488,104.67,104.6,14.78412517]
[1743981471803,0.28432314,104.65,104.6,14.78412517]
[1743981472219,71.03087174,104.61,104.6,1.45082517]
[1743981472387,9.84452314,104.6,104.57,1.29594217]
[1743981472589,26.0,104.57,104.52,59.13650069]
[1743981472832,33.4607,104.6,104.52,59.13650069]
[1743981472991,19.57613357,104.59,104.52,59.13650069]
[1743981473189,0.5,104.52,104.49,140.18991925]
[1743981473407,14.86,104.52,104.49,140.18991925]
[1743981473730,26.0,104.5,104.49,140.18991925]
[1743981473935,14.86,104.52,104.49,140.18991925]
[1743981474232,0.5,104.49,104.46,163.50315537]
[1743981474514,0.5,104.49,104.31,13.3315]
[1743981474515,0.5,104.43,104.42,147.07224772]
[1743981474729,19.66,104.43,104.42,6.432e-05]
[1743981474902,26.5,104.41,104.4,136.25671094]
[1743981475091,26.0,104.41,104.4,136.25671094]
[1743981475286,38.71093164,104.41,104.4,136.25671094]
[1743981475716,38.71093164,104.41,104.31,47.55960328]
[1743981475717,20.0,104.37,104.31,47.55960328]
[1743981475906,185.41116283,104.41,104.33,0.5]
[1743981476099,185.41116283,104.41,104.34,0.5]
[1743981476440,185.41116283,104.41,104.32,5.63e-06]
[1743981477092,82.7059034,104.36,104.32,5.63e-06]
[1743981477498,26.0,104.33,104.32,5.63e-06]
[1743981477689,81.38388692,104.33,104.17,310.922]
[1743981477915,73.22141581,104.33,104.17,310.922]
[1743981478255,73.22141581,104.33,104.19,0.5]
[1743981478256,2.378e-05,104.24,104.19,0.5]
[1743981478401,2.378e-05,104.24,104.17,198.05871539]
[1743981478595,18.33752889,104.31,104.17,198.05871539]
[1743981478791,26.0,104.28,104.18,9.5987]
[1743981478995,18.33752889,104.31,104.18,33.5956]
[1743981479293,18.83752889,104.31,104.2,26.0]
[1743981479593,6.11250963,104.3,104.2,26.0]
[1743981479792,6.11250963,104.3,104.17,144.97445178]
[1743981479793,9.63e-06,104.3,104.17,144.97445178]
[1743981480314,9.63e-06,104.3,104.29,71.03087174]
[1743981480515,9.63e-06,104.3,104.29,9.5886]
[1743981480901,9.63e-06,104.3,104.29,92.93577174]
[1743981481102,6.54842414,104.32,104.29,45.8765]
[1743981481424,54.88388692,104.34,104.31,71.03087174]
[1743981481609,54.88388692,104.34,104.29,45.8765]
[1743981481807,0.5,104.3,104.29,12.3163]
[1743981482020,0.5,104.31,104.26,9.5913]
[1743981482341,0.5,104.29,104.23,9.5941]
[1743981482537,0.5,104.26,104.22,21.6955]
[1743981482719,0.5,104.3,104.25,71.03087174]
[1743981483036,82.7059034,104.36,104.29,71.03087174]
[1743981483342,82.7059034,104.36,104.29,298.7]
[1743981483541,82.7059034,104.36,104.35,71.03087174]
[1743981483837,82.7059034,104.36,104.32,26.0]
[1743981484018,82.7059034,104.36,104.35,71.03087174]
[1743981484220,70.35212373,104.4,104.35,71.03087174]
[1743981484521,29.45426743,104.4,104.39,142.06174348]
[1743981484725,54.88388692,104.46,104.39,142.06174348]
[1743981485040,54.88388692,104.46,104.45,142.06174348]
[1743981485234,25.58134689,104.5,104.45,142.06174348]
[1743981485432,1.37e-05,104.49,104.43,0.14216157]
[1743981485637,0.5,104.48,104.41,5.0375]
[1743981485808,0.5,104.44,104.41,5.0375]
[1743981486013,1.37e-05,104.49,104.44,26.0]
[1743981486227,1.37e-05,104.49,104.48,71.03087174]
[1743981486509,0.5,104.59,104.49,18.64964886]
[1743981486736,26.57968195,104.62,104.49,18.64964886]
[1743981486737,0.5,104.57,104.49,18.64964886]
[1743981486937,0.5,104.59,104.52,71.03087174]
[1743981487138,0.5,104.55,104.5,0.14216157]
[1743981487444,0.5,104.58,104.54,71.03087174]
[1743981487615,0.5,104.53,104.48,9.5712]
[1743981487812,0.5,104.56,104.52,71.03087174]
[1743981488110,0.063,104.59,104.52,89.6805206]
[1743981488314,0.063,104.59,104.53,18.64964886]
[1743981488535,0.063,104.59,104.5,9.5693]
[1743981488536,0.5,104.58,104.5,9.5693]
[1743981488745,0.5,104.55,104.5,9.5693]
[1743981488913,0.5,104.56,104.48,18.64964886]
[1743981489111,18.85481043,104.59,104.48,28.22064886]
[1743981489112,0.5,104.54,104.48,28.22064886]
[1743981489313,0.5,104.55,104.52,71.03087174]
[1743981489515,0.5,104.56,104.48,18.64964886]
[1743981489718,0.5,104.54,104.47,321.5255]
[1743981490018,0.5,104.53,104.47,311.9535]
[1743981490214,0.5,104.54,104.48,18.64964886]
[1743981490418,0.5,104.54,104.47,321.5255]
[1743981490618,0.5,104.54,104.48,18.64964886]
[1743981490820,0.563,104.59,104.53,71.03087174]
[1743981491045,0.063,104.59,104.55,26.0]
[1743981491714,0.063,104.59,104.58,142.06174348]
[1743981491921,0.563,104.59,104.52,76.13187174]
[1743981492231,0.5,104.56,104.52,4.8794]
[1743981492545,0.5,104.57,104.53,71.03087174]
[1743981492848,0.5,104.54,104.48,9.571]
[1743981493020,0.5,104.52,104.47,311.9535]
[1743981493220,0.5,104.49,104.41,9.5776]
[1743981493419,0.5,104.5,104.45,71.03087174]
[1743981493721,0.5,104.51,104.41,33.5216]
[1743981493927,0.5,104.55,104.5,71.03087174]
[1743981494126,26.11508867,104.56,104.54,71.03087174]
[1743981494423,0.063,104.59,104.54,9.5649]
[1743981494852,0.5,104.58,104.52,22.7936]
[1743981495166,0.063,104.59,104.57,71.03087174]
[1743981495338,0.063,104.59,104.58,71.03087174]
[1743981495735,0.063,104.59,104.54,18.79181043]
[1743981496040,0.063,104.59,104.58,71.03087174]
[1743981496239,26.63356631,104.68,104.59,18.79181043]
[1743981496444,0.5,104.67,104.6,9.5602]
[1743981496626,0.5,104.65,104.58,298.66]
[1743981496951,26.63356631,104.68,104.64,71.03087174]
[1743981497128,26.63356631,104.68,104.66,71.03087174]
[1743981497325,0.5,104.68,104.66,71.03087174]
[1743981497729,0.5,104.72,104.67,71.03087174]
[1743981498035,0.5,104.67,104.63,12.9776]
[1743981498239,0.5,104.71,104.66,71.03087174]
[1743981498442,0.5,104.74,104.69,71.03087174]
[1743981498735,0.5,104.72,104.7,71.03087174]
[1743981498935,0.5,104.71,104.65,9.5556]
[1743981499134,0.5,104.75,104.7,71.03087174]
[1743981499333,0.5,104.74,104.66,18.64964886]
[1743981499533,71.53087174,104.75,104.7,71.03087174]
[1743981499750,0.5,104.72,104.66,18.64964886]
[1743981500028,0.5,104.72,104.64,71.03087174]
[1743981500235,0.28432314,104.75,104.64,71.03087174]
[1743981500236,0.5,104.74,104.71,71.03087174]
[1743981500428,0.5,104.74,104.68,0.14216157]
[1743981500735,0.5,104.74,104.67,18.64964886]
[1743981500939,0.5,104.77,104.7,71.03087174]
[1743981501143,0.5,104.75,104.68,298.52]
[1743981501352,0.5,104.72,104.68,298.52]
[1743981501655,0.5,104.72,104.67,71.03087174]
[1743981501954,0.5,104.72,104.68,71.03087174]
[1743981502159,0.5,104.7,104.67,71.03087174]
[1743981502343,0.5,104.7,104.66,71.03087174]
[1743981502547,0.5,104.7,104.64,71.03087174]
[1743981502758,0.5,104.69,104.66,71.03087174]
[1743981502971,0.5,104.7,104.64,71.03087174]
[1743981503267,0.5,104.72,104.69,71.03087174]
[1743981503435,0.5,104.71,104.65,18.64964886]
[1743981503632,0.5,104.72,104.65,1.747321]
[1743981503858,0.5,104.7,104.65,1.747321]
[1743981504053,0.5,104.69,104.63,27.7776]
[1743981504256,0.5,104.72,104.67,71.03087174]
[1743981504438,0.5,104.72,104.66,9.5547]
[1743981504648,0.5,104.75,104.66,9.5547]
[1743981504846,0.5,104.74,104.67,18.64964886]
[1743981505050,0.5,104.74,104.7,71.03087174]
[1743981505250,0.5,104.74,104.66,33.4415]
[1743981505470,0.5,104.72,104.67,18.64964886]
[1743981505781,0.5,104.73,104.7,71.03087174]
[1743981505983,0.5,104.71,104.68,71.03087174]
[1743981506281,0.5,104.73,104.7,71.03087174]
[1743981506570,0.5,104.73,104.67,18.64964886]
[1743981506571,0.5,104.75,104.71,71.03087174]
[1743981506755,0.5,104.74,104.72,71.03087174]
[1743981506954,0.5,104.73,104.69,71.03087174]
[1743981507161,0.5,104.72,104.69,71.03087174]
[1743981507347,0.5,104.7,104.67,9.5535]
[1743981507552,0.5,104.7,104.63,18.2209]
[1743981507749,0.5,104.69,104.63,18.2209]
[1743981508071,0.5,104.66,104.63,84.00847174]
[1743981508283,0.5,104.66,104.62,9.558]
[1743981508565,0.5,104.66,104.63,71.03087174]
[1743981508746,0.5,104.64,104.61,369.55087174]
[1743981508941,0.28432314,104.69,104.61,369.55087174]
[1743981508942,0.5,104.63,104.61,369.55087174]
[1743981509163,71.03087174,104.68,104.62,71.03087174]
[1743981509471,71.03087174,104.69,104.63,71.03087174]
[1743981509675,9.5504,104.71,104.64,71.03087174]
[1743981509971,33.4258,104.71,104.61,308.0789]
[1743981510266,71.03087174,104.63,104.57,13.0128]
[1743981510447,9.5556,104.65,104.55,33.4762]
[1743981510647,71.03087174,104.62,104.55,9.5648]
[1743981510870,71.03087174,104.64,104.54,9.5953]
[1743981511070,71.03087174,104.6,104.55,71.03087174]
[1743981511259,0.28432314,104.63,104.56,71.03087174]
[1743981511459,71.03087174,104.64,104.59,71.03087174]
[1743981511845,9.5556,104.65,104.58,71.03087174]
[1743981512048,71.03087174,104.64,104.59,71.03087174]
[1743981512251,9.5556,104.65,104.54,33.5095]
[1743981512252,71.03087174,104.62,104.54,33.5095]
[1743981512560,71.03087174,104.61,104.54,9.5953]
[1743981512758,0.28432314,104.63,104.54,9.5953]
[1743981512951,71.03087174,104.59,104.54,0.03]
[1743981513147,71.03087174,104.56,104.54,0.03]
[1743981513346,19.07613357,104.61,104.54,0.03]
[1743981513574,71.03087174,104.57,104.54,0.03]
[1743981513775,19.07613357,104.61,104.54,0.03]
[1743981513966,0.28432314,104.61,104.54,0.03]
[1743981514353,71.03087174,104.57,104.54,0.03]
[1743981514655,71.03087174,104.55,104.54,0.03]
[1743981514848,28.63903357,104.57,104.54,0.03]
[1743981515053,28.63723357,104.59,104.54,0.03]
[1743981515364,71.03087174,104.56,104.54,0.03]
[1743981515569,71.03087174,104.59,104.54,71.06087174]
[1743981515878,90.7602,104.6,104.54,0.03]
[1743981516174,71.03087174,104.61,104.54,0.03]
[1743981516479,71.03087174,104.59,104.54,71.06087174]
[1743981516658,71.03087174,104.58,104.54,0.03]
[1743981516973,9.5606,104.6,104.54,0.03]
[1743981517277,71.03087174,104.62,104.54,0.03]
[1743981517483,71.03087174,104.62,104.57,71.03087174]
[1743981517772,90.7568,104.64,104.57,71.03087174]
[1743981517964,71.03087174,104.61,104.54,0.03]
[1743981518364,71.03087174,104.61,104.56,71.03087174]
[1743981518567,71.03087174,104.62,104.57,71.03087174]
[1743981518964,9.5556,104.65,104.57,9.5628]
[1743981519151,71.03087174,104.64,104.59,71.03087174]
[1743981519354,20.855,104.66,104.59,71.03087174]
[1743981519558,71.03087174,104.67,104.62,71.03087174]
[1743981519771,71.03087174,104.66,104.59,18.64964886]
[1743981519980,71.03087174,104.67,104.61,71.03087174]
[1743981520177,71.03087174,104.65,104.57,33.4702]
[1743981520468,71.03087174,104.65,104.6,71.03087174]
[1743981520663,71.03087174,104.64,104.57,33.4702]
[1743981520864,71.03087174,104.64,104.58,80.59247174]
[1743981521101,0.28432314,104.65,104.57,9.5629]
[1743981521265,71.03087174,104.64,104.57,9.5629]
[1743981521799,71.03087174,104.58,104.54,0.03]
[1743981522097,71.03087174,104.56,104.54,0.03]
[1743981522483,0.28432314,104.61,104.54,71.06087174]
[1743981522666,71.03087174,104.6,104.55,71.03087174]
[1743981522865,9.5596,104.61,104.54,9.5953]
[1743981523359,71.03087174,104.58,104.54,9.5953]
[1743981523594,9.5587,104.62,104.55,71.03087174]
[1743981523789,90.7578,104.63,104.56,71.03087174]
[1743981524108,71.03087174,104.57,104.54,0.03]
[1743981524559,19.07613357,104.61,104.54,0.03]
[1743981524763,71.03087174,104.55,104.54,0.03]
[1743981524997,80.59567174,104.55,104.54,0.03]
[1743981525169,80.87999488,104.55,104.54,0.03]
[1743981525367,9.5648,104.55,104.54,0.03]
[1743981525566,71.03087174,104.55,104.54,0.03]
[1743981526295,9.5611,104.59,104.54,0.03]
[1743981526466,71.03087174,104.57,104.54,0.03]
[1743981527093,9.5623,104.58,104.54,0.03]
[1743981527302,71.03087174,104.55,104.54,0.03]
[1743981527502,71.03087174,104.56,104.54,0.03]
[1743981527673,80.59317174,104.58,104.54,0.03]
[1743981527870,71.03087174,104.56,104.54,0.03]
[1743981528271,71.03087174,104.55,104.54,0.03]
[1743981528477,80.59317174,104.58,104.54,0.03]
[1743981528799,71.03087174,104.55,104.54,0.03]
[1743981529690,9.5638,104.57,104.54,0.03]
[1743981530008,71.03087174,104.55,104.54,0.03]
[1743981530513,71.03087174,104.55,104.48,0.03]
[1743981530514,19.07613357,104.54,104.48,0.03]
[1743981530679,71.03087174,104.52,104.48,0.03]
[1743981530877,71.03087174,104.5,104.48,0.03]
[1743981531078,9.5675,104.52,104.48,0.03]
[1743981531315,35.5669,104.53,104.48,0.03]
[1743981531477,71.03087174,104.51,104.48,0.03]
[1743981532092,35.5669,104.53,104.48,0.03]
[1743981532507,71.03087174,104.51,104.48,0.03]
[1743981532714,71.03087174,104.5,104.48,0.03]
[1743981532916,80.60107174,104.49,104.48,0.03]
[1743981533206,9.5684,104.51,104.48,0.03]
[1743981533578,71.03087174,104.51,104.48,0.03]
[1743981533779,35.567,104.53,104.48,0.03]
[1743981533997,71.03087174,104.51,104.48,0.03]
[1743981534215,9.5638,104.56,104.48,71.06087174]
[1743981534510,116.3876,104.57,104.48,71.06087174]
[1743981534511,71.03087174,104.57,104.52,71.03087174]
[1743981534728,71.03087174,104.59,104.54,71.03087174]
[1743981534878,71.03087174,104.59,104.54,9.5654]
[1743981535080,33.4544,104.62,104.52,80.59837174]
[1743981535290,9.5584,104.62,104.53,71.03087174]
[1743981535488,71.03087174,104.59,104.52,33.4863]
[1743981535718,9.5584,104.62,104.54,71.03087174]
[1743981535884,71.03087174,104.6,104.55,71.03087174]
[1743981536293,71.03087174,104.59,104.52,33.4863]
[1743981536596,71.03087174,104.56,104.52,9.5675]
[1743981536802,71.03087174,104.55,104.51,21.761]
[1743981537426,71.03087174,104.55,104.51,12.193]
[1743981537427,71.03087174,104.54,104.51,12.193]
[1743981537599,9.5649,104.55,104.49,87.73547174]
[1743981537909,71.03087174,104.54,104.49,16.7046]
[1743981538113,71.03087174,104.51,104.48,0.03]
[1743981538487,71.03087174,104.52,104.48,0.03]
[1743981538688,33.4769,104.55,104.48,0.03]
[1743981538896,33.4769,104.55,104.48,80.63207174]
[1743981538897,71.03087174,104.53,104.48,80.63207174]
[1743981539483,71.03087174,104.51,104.48,0.03]
[1743981539684,71.03087174,104.52,104.48,0.03]
[1743981539915,9.5657,104.54,104.48,9.601]
[1743981540119,9.5638,104.56,104.49,71.03087174]
[1743981540320,71.03087174,104.53,104.48,71.06087174]
[1743981540523,71.03087174,104.52,104.48,0.03]
[1743981540693,0.28432314,104.55,104.48,0.03]
[1743981540894,71.03087174,104.51,104.48,0.03]
[1743981541313,71.03087174,104.5,104.48,0.03]
[1743981541516,9.5666,104.53,104.48,0.03]
[1743981541517,71.03087174,104.49,104.48,0.03]
[1743981541836,9.566,104.54,104.48,0.03]
[1743981541985,71.03087174,104.55,104.5,71.03087174]
[1743981542192,105.1083,104.57,104.5,71.03087174]
[1743981542193,9.5633,104.57,104.5,71.03087174]
[1743981542401,9.5611,104.59,104.51,71.03087174]
[1743981542599,71.03087174,104.6,104.55,71.03087174]
[1743981542827,71.03087174,104.6,104.52,71.03087174]
[1743981543014,71.03087174,104.59,104.5,0.28432314]
[1743981543205,71.03087174,104.59,104.54,71.03087174]
[1743981543402,34.78006157,104.62,104.56,71.03087174]
[1743981543403,10.74,104.62,104.56,71.03087174]